Cogmind - Beta 12 X6 @@@ ROGUE MODE // 2023.02.23 @ 22:41:27 Player: Plexion Result: Escaped! Performance ------------- Evolutions (9) 4500 Regions Visited (23) 4600 Robots Destroyed (192) 960 Value Destroyed (15193) 15193 Prototype IDs (62) 1240 Alien Tech Used (0) 0 Bonus (18980) 18980 TOTAL SCORE: 45473 Bonus ------- High Alert Combat Kills 641 Follower Combat Kills 1933 Entered Garrisons 1600 Used RIF Installer 4500 Aligned with FarCom 300 Met MAIN.C 5000 Destroyed MAIN.C Shell 5000 Win 3000 Friendly Fire -2994 Cogmind --------- Core Integrity 104/1600 Matter 726/800 Energy 98/100 System Corruption 9% Temperature Cool (0) Movement Core (50) Location To Epsilon Eridani Parts ------- > --- POWER (2) -------- (None) > --- PROPULSION (5) --- (None) > --- UTILITY (16) ----- Experimental Matter Compressor Enhanced Optical Array Advanced Targeting Computer Experimental Core Analyzer Relay Coupler [Proto] (10) Relay Coupler [Proto] (4) > --- WEAPON (2) ------- (None) > --- INVENTORY (5) ---- Zero-point Reactor Experimental Matter Compressor (0) Advanced Dynamic Insulation System Compact HERF Cannon Long-range Missile Launcher Peak State ------------ > --- POWER ------------ Light Quantum Reactor Zero-point Reactor > --- PROPULSION ------- Cooled Antigrav System Cooled Antigrav System Combat Linear Gravjet Combat Linear Gravjet Combat Linear Gravjet > --- UTILITY ---------- Experimental Cooling System Experimental Energy Well Experimental Matter Compressor Enhanced Optical Array Advanced Targeting Computer Experimental Targeting Computer Experimental Core Analyzer Experimental Core Analyzer Experimental Armor Integrity Analyzer Advanced Particle Accelerator Advanced Weapon Cycler Experimental Core Shielding Centrium Medium Armor Plating Centrium Medium Armor Plating Relay Coupler [Proto] Relay Coupler [Proto] > --- WEAPON ----------- Omega Cannon > --- INVENTORY -------- Experimental Matter Compressor Centrium Medium Armor Plating Advanced Dynamic Insulation System Compact HERF Cannon Long-range Missile Launcher [Rating: 226] Favorites ----------- Power Micro Nuclear Core Engine Light Deuterium Engine Power Core Micro Nuclear Core Reactor Light Quantum Reactor Propulsion Combat Linear Gravjet Treads Light Treads Wheel Compact Wheel Hover Unit Combat Linear Gravjet Flight Unit Improved VTOL Module Utility Hacking Suite Device Advanced Cooling System Storage Small Storage Unit Processor Advanced Targeting Computer Hackware Hacking Suite Protection Hardened Light Armor Plating Weapon Remote Datajack Energy Gun Small Laser Energy Cannon Enhanced Nova Cannon Ballistic Gun Improved Assault Rifle Ballistic Cannon Omega Cannon Launcher Long-range Missile Launcher Special Weapon Remote Datajack Impact Weapon Mace Slashing Weapon Ionic Axe Piercing Weapon Enhanced Force Lance Special Melee Weapon Datajack Build | -11 -10 -10 -10 -9 -8 -8 -7 -7 -7 -7 -6 -6 -6 -6 -5 -5 -4 -4 -3 -3 -2 -1 -1 ------- Run | Jun Mat Min Exi Min Mat Gar Fac Gar Fac Gar Fac Gar Fac Gar Fac Gar Fac Gar Res Gar Res Acc Com Slots Evolved 18 | . . . . . 4 . 2 . . . 2 . . . 2 . 2 . 2 . 2 2 . Power 1 | . . . . . . . . . . . . . . . . . . . . . . 1 . Propulsion 3 | . . . . . 1 . . . . . 1 . . . . . . . . . . 1 . Utility 14 | . . . . . 3 . 2 . . . 1 . . . 2 . 2 . 2 . 2 . . Weapon . | . . . . . . . . . . . . . . . . . . . . . . . . Parts Attached 417 | 7 4 2 1 5 25 16 13 13 15 14 13 42 11 20 6 13 23 4 14 49 16 38 53 Power 26 | 1 1 . . . 3 . 1 . . . 2 . 1 . 1 . 2 . 1 4 1 6 2 Engine 4 | 1 1 . . . 1 . . . . . 1 . . . . . . . . . . . . Core 8 | . . . . . 2 . 1 . . . 1 . 1 . 1 . 1 . . 1 . . . Reactor 14 | . . . . . . . . . . . . . . . . . 1 . 1 3 1 6 2 Propulsion 52 | 2 . 1 . . 8 2 3 . 3 . 1 1 2 1 . . 4 . 5 5 1 6 7 Treads 10 | 2 . . . . 7 1 . . . . . . . . . . . . . . . . . Leg . | . . . . . . . . . . . . . . . . . . . . . . . . Wheel 1 | . . 1 . . . . . . . . . . . . . . . . . . . . . Hover 19 | . . . . . . 1 . . . . . . . . . . . . . 4 1 6 7 Flight 22 | . . . . . 1 . 3 . 3 . 1 1 2 1 . . 4 . 5 1 . . . Utility 173 | 1 1 . 1 1 6 2 6 2 2 4 7 26 3 13 5 9 9 4 8 16 7 6 34 Device 58 | . 1 . . 1 2 1 . . . . 2 10 1 5 3 . 3 1 3 5 1 2 17 Storage 9 | 1 . . 1 . . . 1 . . . . . . . . . . . . . 1 1 4 Processor 14 | . . . . . 1 . 1 . . . . . . . 2 . 1 . 2 . 1 1 5 Hackware 53 | . . . . . . . 4 2 2 3 3 6 . 3 . 9 3 2 2 8 2 . 4 Protection 39 | . . . . . 3 1 . . . 1 2 10 2 5 . . 2 1 1 3 2 2 4 Artifact . | . . . . . . . . . . . . . . . . . . . . . . . . Weapon 166 | 3 2 1 . 4 8 12 3 11 10 10 3 15 5 6 . 4 8 . . 24 7 20 10 Energy Gun 5 | 3 . 1 . . . . . . . . . . 1 . . . . . . . . . . Energy Cannon 32 | . . . . . . . . . . 1 1 1 . . . 3 . . . 12 2 8 4 Ballistic Gun 17 | . 2 . . 3 6 6 . . . . . . . . . . . . . . . . . Ballistic Cannon 1 | . . . . . . . . . . . . . . . . . . . . . . . 1 Launcher 19 | . . . . 1 1 2 . . . 4 . 4 . 3 . . . . . 1 1 1 1 Special Weapon 36 | . . . . . . . 1 6 5 . 1 4 3 3 . 1 3 . . 2 3 4 . Impact Weapon 2 | . . . . . . . . . . . . . . . . . 2 . . . . . . Slashing Weapon 50 | . . . . . 1 3 1 5 5 5 1 4 1 . . . 3 . . 9 1 7 4 Piercing Weapon 2 | . . . . . . . . . . . . 2 . . . . . . . . . . . Special Melee Weapon 2 | . . . . . . 1 1 . . . . . . . . . . . . . . . . Unidentified Prototypes 24 | . . . . . 2 . . . 1 . . . 1 . . . 1 . 2 . 1 . 16 Corrupted Parts 1 | . . . . . . . . . . . . . . . . . . . . . . . 1 System Corruption 2 | . . . . . . . . . . . . . . . . . . . . . . . 2 Parts Lost 45 | . . 5 . . 3 7 . . 1 1 4 . . . . 1 . . . 4 1 2 16 Power 4 | . . 1 . . . . . . . . 1 . . . . . . . . . . . 2 Propulsion 13 | . . 2 . . 1 4 . . . . . . . . . . . . . 1 . . 5 Utility 22 | . . 1 . . 1 2 . . 1 . 3 . . . . . . . . 3 1 2 8 Weapon 6 | . . 1 . . 1 1 . . . 1 . . . . . 1 . . . . . . 1 Highest Loss Streak 13 | . . 5 . . 1 7 . . 1 1 3 . . . . 1 . . . 2 1 2 13 To Critical Strikes . | . . . . . . . . . . . . . . . . . . . . . . . . Average Slot Usage (%) 90 | . 89 73 57 65 92 95 88 92 90 90 97 99 100 100 91 98 97 97 96 95 86 88 89 Engine 1 | . 14 5 . . 2 . . . . . 2 6 3 . . . . . . . . . . Core 3 | . . . . . 6 9 7 7 7 . 3 . 2 6 5 5 5 5 3 . . . . Reactor 1 | . . . . . . . . . . . . . . . . . . . . 3 4 6 7 Treads 7 | . 28 11 . . 25 23 . . . . . . . . . . . . . . . . . Wheel 1 | . . 6 14 14 . . . . . . . . . . . . . . . . . . . Hover 4 | . . . . . . . . . . . . . . . . . . . . 7 17 18 19 Flight 9 | . . . . . . . 23 23 23 23 26 26 26 26 23 23 21 21 19 11 . . . Device 5 | . 4 6 . 8 11 8 . . . . . . . . . . . . . 1 8 10 12 Storage 7 | . 14 14 14 14 9 9 7 7 7 7 6 6 6 6 5 5 5 5 4 4 4 4 5 Processor 4 | . . . . . 1 9 11 15 5 . . . . . 2 5 5 5 10 8 5 9 14 Hackware 21 | . . . . . . . 28 30 39 38 38 40 40 40 35 39 44 44 42 41 30 24 16 Protection 7 | . . . . . 18 16 . . . 7 5 5 6 5 5 5 4 4 4 3 5 7 7 Energy Gun 1 | . 7 7 14 . . . . . . . . . . . . . . . . . . . . Ballistic Gun 7 | . 20 19 14 26 17 14 . . . . . . . . . . . . . . . . . Special Weapon 2 | . . . . . . . 1 2 5 7 6 5 6 5 5 4 5 5 4 3 3 3 2 Slashing Weapon 2 | . . . . . . 2 6 4 1 4 6 4 6 6 5 4 3 5 4 3 4 3 1 Naked Turns . | . . . . . . . . . . . . . . . . . . . . . . . . Heaviest Build 88 | 11 12 12 22 25 49 46 15 14 14 17 21 25 22 22 22 28 22 22 25 64 76 85 88 Greatest Support 77 | 40 40 40 16 16 62 62 15 15 16 16 21 24 24 23 23 23 25 24 28 63 68 75 77 Greatest Overweight (x) 10 | . . 2 1 1 8 10 . . 2 1 . 1 . . . 1 1 . 1 1 1 1 1 Average Overweight (x) . | . . . . 1 . . . . . . . . . . . . . . . . . . . Largest Inventory Capacity 15 | 8 8 8 15 15 15 15 15 8 8 8 8 8 8 8 8 8 8 8 8 8 10 10 10 Average Capacity 10 | 7 8 8 12 15 15 15 8 8 8 8 8 8 8 8 8 8 8 8 8 8 9 10 8 Most Carried 15 | 2 5 6 7 8 15 15 12 8 8 8 8 8 8 8 8 8 8 8 8 8 10 10 10 Average Carried 8 | . 3 4 6 6 14 14 7 7 7 6 7 8 8 7 8 7 7 8 7 7 9 9 6 Final Capacity 15 | 8 8 8 15 15 15 15 8 8 8 8 8 8 8 8 8 8 8 8 8 8 10 10 5 Final Carried 15 | 2 4 6 7 7 15 12 8 8 7 8 8 8 8 8 8 8 8 8 8 8 10 9 5 Class Distribution -------------------- 27% | Botlord-Sprinter 20% | Scavenger-Mutant 18% | Mutant 17% | Botlord-Mutant 11% | Bothacker-Sprinter Dominant Class ---------------- Mutant | -10/Materials Mutant | -10/Mines Mutant | -10/Exiles Mutant | -9/Mines Scavenger-Mutant | -8/Materials Scavenger-Mutant | -8/Garrison Bothacker-Sprinter | -7/Factory Bothacker-Sprinter | -7/Garrison Bothacker-Sprinter | -7/Factory Bothacker-Sprinter | -7/Garrison Botlord-Sprinter | -6/Factory Botlord-Sprinter | -6/Garrison Botlord-Sprinter | -6/Factory Botlord-Sprinter | -6/Garrison Botlord-Sprinter | -5/Factory Botlord-Sprinter | -5/Garrison Botlord-Sprinter | -4/Factory Botlord-Sprinter | -4/Garrison Botlord-Sprinter | -3/Research Botlord-Mutant | -3/Garrison Botlord-Mutant | -2/Research Botlord-Mutant | -1/Access Scavenger-Mutant | -1/Command Resources | -11 -10 -10 -10 -9 -8 -8 -7 -7 -7 -7 -6 -6 -6 -6 -5 -5 -4 -4 -3 -3 -2 -1 -1 ----------- Run | Jun Mat Min Exi Min Mat Gar Fac Gar Fac Gar Fac Gar Fac Gar Fac Gar Fac Gar Res Gar Res Acc Com Matter Collected 10518 | 221 176 44 . 61 737 530 69 222 238 213 189 678 140 377 . 319 230 299 . 918 185 550 4122 Remotely . | . . . . . . . . . . . . . . . . . . . . . . . . Salvage Created 7926 | . 345 133 . 41 1316 650 69 58 103 401 189 445 . 307 . 322 132 206 . 563 619 1112 915 Parts 422 | . 17 5 . 4 70 40 8 4 7 35 11 19 . 15 . 14 . 10 . 33 39 60 31 Haulers Intercepted 5 | . . . . . 4 . . . . . 1 . . . . . . . . . . . . Recyclers Shooed 5 | . . 2 . . . . . . . . . . 1 . . . . . . . . 1 1 Parts Field Recycled . | . . . . . . . . . . . . . . . . . . . . . . . . Retrieved Matter . | . . . . . . . . . . . . . . . . . . . . . . . . Parts Self-Destructed . | . . . . . . . . . . . . . . . . . . . . . . . . Prevented . | . . . . . . . . . . . . . . . . . . . . . . . . Kills | -11 -10 -10 -10 -9 -8 -8 -7 -7 -7 -7 -6 -6 -6 -6 -5 -5 -4 -4 -3 -3 -2 -1 -1 ------- Run | Jun Mat Min Exi Min Mat Gar Fac Gar Fac Gar Fac Gar Fac Gar Fac Gar Fac Gar Res Gar Res Acc Com Combat Hostiles Destroyed 157 | . 10 2 . 4 17 17 . 1 2 23 1 13 . 10 . 4 2 1 . 11 7 16 16 Melee 20 | . . . . . . . . 1 2 1 1 1 . 4 . 3 . 1 . 2 1 3 . Guns 40 | . 10 2 . . 16 12 . . . . . . . . . . . . . . . . . Cannons 31 | . . . . . . . . . . 1 . 1 . . . 1 . . . 7 2 6 13 AOE 61 | . . . . 4 1 5 . . . 21 . 11 . 6 . . . . . 2 4 4 3 Classes Destroyed 20 | . 2 3 . 1 5 1 2 . . 1 . 1 . . . . . . . . 1 . 3 Worker 7 | . . . . . 3 . . . . . . . . . . . . . . . 3 . 1 Builder 1 | . . . . . . . . . . . . . . . . . . . . . 1 . . Tunneler 3 | . . . . 1 2 . . . . . . . . . . . . . . . . . . Hauler 5 | . . . . . 4 . . . . . 1 . . . . . . . . . . . . Recycler 6 | . . 1 . . 1 . . . . . . . . . . . . . . . 2 1 1 Mechanic 1 | . . . . . . . 1 . . . . . . . . . . . . . . . . Operator 3 | . . . . . . . 1 . . . . . . . . . . . . . 1 . 1 Watcher 3 | . . . . . 2 . . . . . 1 . . . . . . . . . . . . Swarmer 45 | . 3 . . 4 . 3 . . . 11 . 6 . 7 . . . . . 3 4 4 . Cutter 6 | . . . . . . . . . . 4 . . . . . . . . . 2 . . . Grunt 58 | . 7 . . . 9 10 . 1 1 7 . 6 . 4 . 4 2 1 . 4 . 2 . Brawler 1 | . . . . . . . . . . . . . . . . . . . . . . . 1 Duelist 2 | . . . . . . . . . . . . 1 . . . . . . . . . 1 . Protector 1 | . . . . . . . . . . . . . . . . . . . . . . . 1 Sentry 15 | . . . . . 7 1 . . 1 . 1 . . . . . . 2 . . 1 2 . Demolisher 1 | . . 1 . . . . . . . . . . . . . . . . . . . . . Hunter 5 | . . . . . 1 . . . . . . . . . . . . . . 2 . 2 . Programmer 15 | . . . . . . 3 . . . 1 . 1 . . . 1 . . . 1 2 5 1 Enhanced Q-Series 13 | . . . . . . . . . . . . . . . . . . . . . . . 13 Assembled 1 | . . 1 . . . . . . . . . . . . . . . . . . . . . Butcher 1 | . . . . . . . . . . . . 1 . . . . . . . . . . . Best Kill Streak 9 | . 5 2 . 4 4 3 1 1 2 9 1 3 . 4 . 2 2 1 . 2 6 4 3 Combat Bots Only 9 | . 5 1 . 4 3 3 . 1 2 9 1 3 . 4 . 2 2 1 . 2 4 4 3 Max Kills in Single Turn 6 | . 1 1 . 2 2 3 1 1 1 6 1 3 . 3 . 1 1 1 . 2 3 2 1 Gunslinging 1 | . . . . . 1 . . . . . . . . . . . . . . . . . . Exploded 6 | . . . . 2 1 3 . . . 6 . 3 . 3 . . . . . 1 2 2 1 Melee 1 | . . . . . . . . 1 1 1 1 1 . 1 . 1 . 1 . 1 1 1 . Uniques/NPCs Destroyed 1 | . . . . . . . . . . . . . . . . . . . . . . . 1 MAIN.C Shell (-1/Command) Combat | -11 -10 -10 -10 -9 -8 -8 -7 -7 -7 -7 -6 -6 -6 -6 -5 -5 -4 -4 -3 -3 -2 -1 -1 -------- Run | Jun Mat Min Exi Min Mat Gar Fac Gar Fac Gar Fac Gar Fac Gar Fac Gar Fac Gar Res Gar Res Acc Com Damage Taken 11117 | . 461 453 . 9 853 1254 . 36 205 284 291 148 . 270 . 174 161 18 90 525 431 665 4789 Core 2635 | . 68 104 . 9 144 173 . 12 94 72 77 81 . 51 . 61 97 . . 77 19 48 1448 Absorbed by Shields 901 | . . . . . . . . . . . . . . . . . . . . . . . 901 Core Remaining (%) 70 | 100 . . . 27 . 42 . . . 74 . . . 75 . 93 . 91 . 94 98 . 6 Volleys Fired 617 | . 40 15 . 6 85 53 1 9 15 16 7 22 4 20 7 21 21 20 11 60 12 46 126 Largest 2 | . 2 2 . 2 2 2 1 1 1 1 1 1 1 1 1 1 1 1 1 1 1 1 1 Hottest 120 | . 60 60 . 43 51 51 5 5 5 120 85 85 5 43 5 120 7 7 7 120 120 120 120 Shots Fired 777 | . 80 29 . 10 148 92 1 9 15 16 7 22 4 20 7 21 21 20 11 60 12 46 126 Gun 351 | . 80 29 . 8 146 88 . . . . . . . . . . . . . . . . . Cannon 195 | . . . . . . . . . . 2 2 4 . . . 8 . . . 30 5 29 115 Launcher 46 | . . . . 2 2 4 . . . 11 . 8 . 4 . . . . . 4 2 3 6 Special 185 | . . . . . . . 1 9 15 3 5 10 4 16 7 13 21 20 11 26 5 14 5 Kinetic 416 | . 61 17 . 8 146 88 . . . . . . . . . . . . . . . . 96 Thermal 108 | . 19 12 . . . . . . . 2 2 4 . . . 7 . . . 26 5 16 15 Explosive 46 | . . . . 2 2 4 . . . 11 . 8 . 4 . . . . . 4 2 3 6 Electromagnetic 22 | . . . . . . . . . . . . . . . . 1 . . . 4 . 13 4 Robot Hit Streak 57 | . 9 5 . 2 22 15 2 7 6 4 7 6 9 12 5 13 18 11 9 24 5 19 57 Robot Miss Streak 4 | . 3 4 . 3 3 1 . 1 3 . 1 2 . 2 1 . 2 1 1 1 1 2 1 Penetration Max 1 | . . . . . 1 1 . . . . . . . . . . . . . . . . . Secondary Targets 8 | . 2 . . . 2 4 . . . . . . . . . . . . . . . . . Max Gunslinging Chain 1 | . 1 . . . 1 1 . . . . . . . . . . . . . . . . . Capacitor 53 | . . . . . . . . . . . . . . . . . . . . . 5 29 19 Shots Hit Robots 656 | . 49 18 . 3 87 73 3 8 13 4 12 20 5 26 5 20 25 21 11 37 18 51 147 Core Hits 314 | . 19 7 . 6 49 34 2 1 2 41 4 19 . 11 . 5 . 3 . 17 14 21 59 Critical Kills 3 | . . . . . 2 1 . . . . . . . . . . . . . . . . . Critical Parts Destroyed 2 | . 1 . . . 1 . . . . . . . . . . . . . . . . . . Critical Strikes 27 | . 1 . . . 3 1 . . 1 . 1 1 . 2 . 2 . . . 1 . 7 7 Destroy 5 | . 1 . . . 3 1 . . . . . . . . . . . . . . . . . Blast 7 | . . . . . . . . . . . . . . . . . . . . . . . 7 Corrupt 2 | . . . . . . . . . . . . . . . . . . . . . . 2 . Sever 13 | . . . . . . . . . 1 . 1 1 . 2 . 2 . . . 1 . 5 . Melee Attacks 410 | . . . . . 5 16 15 10 15 13 30 28 6 36 9 22 34 14 17 29 36 41 34 Impact 16 | . . . . . . . . . . . . . . . . . 16 . . . . . . Slashing 390 | . . . . . 5 16 15 10 15 13 30 24 6 36 9 22 18 14 17 29 36 41 34 Piercing 4 | . . . . . . . . . . . . 4 . . . . . . . . . . . Sneak Attacks 74 | . . . . . . . 2 1 3 . 4 5 1 10 . 6 8 7 . 1 9 12 5 Combat Hostiles 34 | . . . . . . . . 1 1 . 2 1 . 6 . 5 5 2 . 1 4 5 1 Follow-up Attacks . | . . . . . . . . . . . . . . . . . . . . . . . . Damage Inflicted 31140 | . 527 188 . 248 1808 1844 182 74 321 1723 447 1635 58 1644 . 632 564 721 48 1553 1711 2843 12369 Guns 3686 | . 527 188 . 26 1594 1351 . . . . . . . . . . . . . . . . . Cannons 11446 | . . . . . . . . . . 81 . 91 . . . 89 . . . 1036 104 949 9096 Explosions 6743 | . . . . 222 194 493 . . . 1601 . 1190 . 677 . . . . . 316 638 564 848 Melee 9245 | . . . . . . . 182 74 321 41 447 354 58 967 . 543 564 721 48 201 969 1330 2425 Ramming 20 | . . . . . 20 . . . . . . . . . . . . . . . . . . Kinetic 11868 | . 406 86 . 26 1594 1351 . . . . . . . . . . . . . . . . 8405 Thermal 2620 | . 121 102 . . . . . . . 81 . 91 . . . 89 . . . 948 104 538 546 Explosive 6743 | . . . . 222 194 493 . . . 1601 . 1190 . 677 . . . . . 316 638 564 848 Electromagnetic 644 | . . . . . . . . . . . . . . . . . . . . 88 . 411 145 Impact 267 | . . . . . . . . . . . . . . . . . 267 . . . . . . Slashing 8978 | . . . . . . . 182 74 321 41 447 354 58 967 . 543 297 721 48 201 969 1330 2425 Piercing . | . . . . . . . . . . . . . . . . . . . . . . . . Highest Corruption 11 | . . . . . . 7 . . . . 11 11 11 11 . 1 . . . 4 . 4 9 Average Corruption 7 | . . . . . . 6 . . . . 11 11 11 11 . 1 . . . 3 . 3 4 Corruption Purged . | . . . . . . . . . . . . . . . . . . . . . . . . Corruption Blocked . | . . . . . . . . . . . . . . . . . . . . . . . . Effects 117 | . . . . . . 6 . . . . 7 24 14 20 . . . . . 4 . 16 26 Message Errors 27 | . . . . . . 2 . . . . 3 8 2 7 . . . . . . . 3 2 Matter Fused 33 | . . . . . . 2 . . . . 2 4 5 6 . . . . . 1 . 7 6 Heat Flow Errors 12 | . . . . . . . . . . . . 3 2 1 . . . . . 1 . 3 2 Energy Discharges 14 | . . . . . . 1 . . . . 1 5 . 1 . . . . . 1 . 1 4 Parts Rejected 4 | . . . . . . . . . . . . 1 . 1 . . . . . . . . 2 Data Loss (minor) 11 | . . . . . . 1 . . . . . . 3 1 . . . . . . . . 6 Data Loss (major) 11 | . . . . . . . . . . . 1 3 1 2 . . . . . . . 2 2 Alerts 3 | . . . . . . . . . . . . . . . . . . . . 1 . . 2 Misdirections 2 | . . . . . . . . . . . . . 1 1 . . . . . . . . . Overload Shots . | . . . . . . . . . . . . . . . . . . . . . . . . Overflow Damage 1692 | . . . . . . . . . . 15 . 101 28 157 . . 57 47 . 72 285 216 714 Projectiles 619 | . . . . . . . . . . . . . . . . . . . . 52 . 22 545 Explosions 137 | . . . . . . . . . . 15 . 22 . 50 . . . . . 20 10 17 3 Melee 936 | . . . . . . . . . . . . 79 28 107 . . 57 47 . . 275 177 166 Knockbacks 48 | . . . . . . . . . . . . . . . . . 1 . . . . . 47 Impact 1 | . . . . . . . . . . . . . . . . . 1 . . . . . . Kinetic 47 | . . . . . . . . . . . . . . . . . . . . . . . 47 Secondary . | . . . . . . . . . . . . . . . . . . . . . . . . Self-Inflicted Damage 278 | . . . . . . 35 . . . 139 . . . 22 . . . . . 45 . . 37 Shots 8 | . . . . . . 2 . . . 3 . . . 1 . . . . . 1 . . 1 Rammed 2 | . . . . . 2 . . . . . . . . . . . . . . . . . . Targets Rammed 2 | . . . . . 2 . . . . . . . . . . . . . . . . . . Kicked . | . . . . . . . . . . . . . . . . . . . . . . . . Crushed . | . . . . . . . . . . . . . . . . . . . . . . . . Highest Temperature 313 | . 141 20 . . 36 11 . . . 128 72 245 313 273 . 173 . . 3 285 213 296 280 Average Temperature 76 | . 39 9 . . 8 5 . . . 69 42 104 154 140 . 73 . . 2 99 104 87 58 Received Heat Transfer 1590 | . 213 . . . 396 414 . 12 63 . . 69 . 54 . 36 18 . . . 45 54 216 Effects 4 | . . . . . . . . . . . . 1 . . . . . . . 3 . . . Interference 4 | . . . . . . . . . . . . 1 . . . . . . . 3 . . . Siege Activations . | . . . . . . . . . . . . . . . . . . . . . . . . Robots Corrupted 3 | . . . . . . . . . . . . . . . . . . . . . . 3 . Combat Hostiles 3 | . . . . . . . . . . . . . . . . . . . . . . 3 . Parts Fried 4 | . . . . . . . . . . . . . . . . . 1 . . . . 3 . Impact Corruptions 4 | . . . . . . . . . . . . . . . . . 4 . . . . . . Robots Melted . | . . . . . . . . . . . . . . . . . . . . . . . . Combat Hostiles . | . . . . . . . . . . . . . . . . . . . . . . . . Parts Melted 7 | . 1 . . . . . . . . . . . . . . 2 . . . . . 4 . Heat Transferred 3054 | . 275 225 . . . . . . . 160 . 111 . . . 160 . . . 1562 74 370 117 Parts Sabotaged . | . . . . . . . . . . . . . . . . . . . . . . . . Parts Stolen . | . . . . . . . . . . . . . . . . . . . . . . . . Parts Stripped . | . . . . . . . . . . . . . . . . . . . . . . . . Power Chain Reactions . | . . . . . . . . . . . . . . . . . . . . . . . . Missiles Intercepted 3 | . . . . . . . . . . . . . . . . . . . . . . . 3 Alert | -11 -10 -10 -10 -9 -8 -8 -7 -7 -7 -7 -6 -6 -6 -6 -5 -5 -4 -4 -3 -3 -2 -1 -1 ------- Run | Jun Mat Min Exi Min Mat Gar Fac Gar Fac Gar Fac Gar Fac Gar Fac Gar Fac Gar Res Gar Res Acc Com Peak Influence 877 | . 185 50 . 119 268 810 424 318 359 877 495 781 495 680 433 413 339 392 314 544 601 554 728 Initial 459 | . . . . . 46 137 424 228 166 147 459 165 409 346 357 58 203 175 220 97 306 50 354 Average 283 | . 47 11 . 42 156 513 299 270 214 460 343 523 451 509 372 225 227 266 230 300 349 199 415 Maximum Alert Level 3 | . . . . . 1 3 2 1 1 3 2 3 2 2 2 2 1 1 1 2 2 2 3 Low Security (%) 41 | 100 100 100 . 100 83 1 . . 56 23 . 2 . . 3 51 30 4 14 42 5 58 57 Level 1 33 | . . . . . 16 34 91 100 43 30 73 23 . 34 82 46 69 95 85 17 72 22 12 Level 2 21 | . . . . . . 52 8 . . 12 26 66 100 65 14 2 . . . 40 22 19 23 Level 3 3 | . . . . . . 12 . . . 33 . 7 . . . . . . . . . . 5 Level 4 . | . . . . . . . . . . . . . . . . . . . . . . . . Level 5 . | . . . . . . . . . . . . . . . . . . . . . . . . High Security . | . . . . . . . . . . . . . . . . . . . . . . . . Max Security . | . . . . . . . . . . . . . . . . . . . . . . . . Squads Dispatched 22 | . 2 . . . 2 . 2 . 4 . 2 . . . . . 2 . 1 . 2 4 1 Investigation 9 | . 1 . . . . . . . . . 2 . . . . . 1 . 1 . 1 3 . Extermination 3 | . . . . . . . 1 . 1 . . . . . . . . . . . . 1 . Reinforcement 9 | . 1 . . . 2 . 1 . 3 . . . . . . . 1 . . . 1 . . Assault 1 | . . . . . . . . . . . . . . . . . . . . . . . 1 Garrison . | . . . . . . . . . . . . . . . . . . . . . . . . Intercept . | . . . . . . . . . . . . . . . . . . . . . . . . Searches Triggered . | . . . . . . . . . . . . . . . . . . . . . . . . Construction Impeded 1 | . . . . . . . . . . . . . . . . . . . . . 1 . . Haulers Reinforced 2 | . . . . . . . . . 2 . . . . . . . . . . . . . . Active Scanning Responses . | . . . . . . . . . . . . . . . . . . . . . . . . Cargo Convoy Interrupts . | . . . . . . . . . . . . . . . . . . . . . . . . Stealth | -11 -10 -10 -10 -9 -8 -8 -7 -7 -7 -7 -6 -6 -6 -6 -5 -5 -4 -4 -3 -3 -2 -1 -1 --------- Run | Jun Mat Min Exi Min Mat Gar Fac Gar Fac Gar Fac Gar Fac Gar Fac Gar Fac Gar Res Gar Res Acc Com Distress Signals 30 | . . . . . 3 . . . 1 . . . 1 . . . 3 . 2 . 2 2 16 Communications Jammed 22 | . . . . . . . . . . . . . . . . . . . . . . 22 . Distress Signals 22 | . . . . . . . . . . . . . . . . . . . . . . 22 . Times Spotted 400 | . 21 15 . 3 32 21 4 6 15 19 7 16 11 11 4 14 26 8 15 24 35 41 52 Peak Tracking Total 10 | . 6 10 . 4 4 6 4 5 4 9 2 5 4 3 2 7 10 4 6 8 9 8 8 Tactical Retreats 34 | . . 2 . . 2 3 . 1 1 . 1 . . 2 . 3 2 2 2 2 7 4 . Traps | -11 -10 -10 -10 -9 -8 -8 -7 -7 -7 -7 -6 -6 -6 -6 -5 -5 -4 -4 -3 -3 -2 -1 -1 ------- Run | Jun Mat Min Exi Min Mat Gar Fac Gar Fac Gar Fac Gar Fac Gar Fac Gar Fac Gar Res Gar Res Acc Com Traps Triggered 39 | . 1 . . . 1 . 1 2 3 5 1 13 . 7 . . 1 1 . 2 1 . . Indirectly . | . . . . . . . . . . . . . . . . . . . . . . . . Trap Hack Attempts . | . . . . . . . . . . . . . . . . . . . . . . . . Triggered . | . . . . . . . . . . . . . . . . . . . . . . . . Disarmed . | . . . . . . . . . . . . . . . . . . . . . . . . Reprogrammed . | . . . . . . . . . . . . . . . . . . . . . . . . Reused . | . . . . . . . . . . . . . . . . . . . . . . . . Traps Extracted . | . . . . . . . . . . . . . . . . . . . . . . . . Installed . | . . . . . . . . . . . . . . . . . . . . . . . . Triggered 2 | . . . . . . . . . . . . . . . . . . . . . . . 2 Machines | -11 -10 -10 -10 -9 -8 -8 -7 -7 -7 -7 -6 -6 -6 -6 -5 -5 -4 -4 -3 -3 -2 -1 -1 ---------- Run | Jun Mat Min Exi Min Mat Gar Fac Gar Fac Gar Fac Gar Fac Gar Fac Gar Fac Gar Res Gar Res Acc Com Machines Disabled 30 | . . . . . 1 3 . 1 . 2 . 4 1 2 . 3 1 2 . 7 . . 3 Max in Single Turn 1 | . . . . . 1 1 . 1 . 1 . 1 1 1 . 1 . 1 . 1 . . 1 Garrison Access 11 | . . . . . . . . . 2 . 2 . 2 . 1 . . . . . 3 1 . Garrison Relay 22 | . . . . . . 3 . 1 . 2 . 4 . 2 . 3 . 2 . 5 . . . Machines Repaired . | . . . . . . . . . . . . . . . . . . . . . . . . Machines Sabotaged . | . . . . . . . . . . . . . . . . . . . . . . . . Overloaded Fab Kills . | . . . . . . . . . . . . . . . . . . . . . . . . Hacking | -11 -10 -10 -10 -9 -8 -8 -7 -7 -7 -7 -6 -6 -6 -6 -5 -5 -4 -4 -3 -3 -2 -1 -1 --------- Run | Jun Mat Min Exi Min Mat Gar Fac Gar Fac Gar Fac Gar Fac Gar Fac Gar Fac Gar Res Gar Res Acc Com Machines Accessed 103 | . 5 . 2 . 6 2 2 1 8 . 15 2 10 3 9 1 7 1 7 2 11 8 1 Terminals 70 | . 5 . . . 5 2 1 1 5 . 10 2 6 3 4 1 4 1 4 2 7 6 1 Fabricators 9 | . . . . . . . . . . . 2 . 1 . 2 . 1 . 2 . 1 . . Repair Stations 2 | . . . . . . . . . . . . . . . 1 . 1 . . . . . . Recycling Units . | . . . . . . . . . . . . . . . . . . . . . . . . Scanalyzers 1 | . . . . . . . . . . . . . . . . . . . . . . 1 . Garrison Access 19 | . . . . . 1 . 1 . 3 . 3 . 3 . 2 . 1 . 1 . 3 1 . Total Hacks 257 | . 14 . 2 . 21 4 2 1 10 . 39 9 23 7 19 3 23 5 22 4 24 24 1 Successful 115 | . 4 . 2 . 9 3 1 1 6 . 18 2 10 2 5 3 11 2 13 2 14 6 1 Failed 142 | . 10 . . . 12 1 1 . 4 . 21 7 13 5 14 . 12 3 9 2 10 18 . Catastrophic 30 | . 4 . . . 1 . 1 . 2 . 5 1 5 . 2 . 3 . 1 1 1 3 . Database Lockouts . | . . . . . . . . . . . . . . . . . . . . . . . . Manual 127 | . 14 . 1 . 19 2 . . 2 . 24 . 11 . 4 2 17 2 14 3 9 3 . Terminals 193 | . 14 . . . 19 4 1 1 6 . 29 9 17 7 9 3 17 5 11 4 17 19 1 Fabricators 25 | . . . . . . . . . . . 5 . 1 . 5 . 3 . 9 . 2 . . Repair Stations 4 | . . . . . . . . . . . . . . . 2 . 2 . . . . . . Recycling Units . | . . . . . . . . . . . . . . . . . . . . . . . . Scanalyzers 3 | . . . . . . . . . . . . . . . . . . . . . . 3 . Garrison Access 30 | . . . . . 2 . 1 . 4 . 5 . 5 . 3 . 1 . 2 . 5 2 . Terminal Hacks 48 | . 2 . 2 . 5 2 . 1 1 . 6 2 2 2 1 2 6 2 2 2 5 2 1 Record 1 | . . . 1 . . . . . . . . . . . . . . . . . . . . Part Schematic 3 | . . . . . . . . . . . 1 . . . . . 2 . . . . . . Robot Analysis 7 | . 2 . . . 3 . . . . . 1 . . . . . 1 . . . . . . Open Door 4 | . . . . . . . . . . . . 1 . . . . . . . . . 2 1 Branch Access Points 1 | . . . . . . . . . . . . . . . . . . . . . 1 . . Emergency Access Points 5 | . . . . . . . . 1 . . . 1 . 1 . 1 . 1 . . . . . Terminal Index 2 | . . . . . . . . . . . . . . . . . . . 1 . 1 . . Fabricator Index 3 | . . . . . . . . . . . 1 . . . . . 1 . 1 . . . . Garrison Index 1 | . . . . . . . . . . . . . 1 . . . . . . . . . . Unreport Threat 3 | . . . . . . . . . . . 1 . . . . . . . . . 2 . . Transport Status 1 | . . . . . . . . . . . . . . . 1 . . . . . . . . Hauler Manifests 6 | . . . . . 1 . . . 1 . 1 . 1 . . . 1 . . . 1 . . Zone Layout 3 | . . . . . 1 . . . . . 1 . . . . . 1 . . . . . . Garrison Registry 4 | . . . . . . 1 . . . . . . . . . 1 . 1 . 1 . . . Patrol Navigation 2 | . . . . . . 1 . . . . . . . . . . . . . 1 . . . Security Stations 1 | . . . . . . . . . . . . . . 1 . . . . . . . . . EX-Prototype ID Bank 1 | . . . 1 . . . . . . . . . . . . . . . . . . . . Fabricator Hacks 13 | . . . . . . . . . . . 3 . 1 . 1 . 1 . 6 . 1 . . Network Status 3 | . . . . . . . . . . . . . 1 . 1 . . . 1 . . . . Load Schematic 7 | . . . . . . . . . . . 2 . . . . . 1 . 3 . 1 . . Build 3 | . . . . . . . . . . . 1 . . . . . . . 2 . . . . Repair Station Hacks 1 | . . . . . . . . . . . . . . . . . 1 . . . . . . Scan Component 1 | . . . . . . . . . . . . . . . . . 1 . . . . . . Recycling Unit Hacks . | . . . . . . . . . . . . . . . . . . . . . . . . Scanalyzer 1 | . . . . . . . . . . . . . . . . . . . . . . 1 . Insert Component 1 | . . . . . . . . . . . . . . . . . . . . . . 1 . Garrison Access Hacks 29 | . . . . . 1 . 1 . 4 . 5 . 5 . 3 . 1 . 2 . 5 2 . Unlock Access 8 | . . . . . 1 . 1 . 1 . 1 . 1 . 1 . 1 . 1 . . . . Seal Access 11 | . . . . . . . . . 2 . 2 . 2 . 1 . . . . . 3 1 . Coupler Status 10 | . . . . . . . . . 1 . 2 . 2 . 1 . . . 1 . 2 1 . Unauthorized Hacks 23 | . 2 . . . 3 1 . . 1 . 4 . 2 . . 1 2 . 3 . 3 1 . Terminals 19 | . 2 . . . 3 1 . . 1 . 4 . 2 . . 1 1 . 1 . 2 1 . Track 4 | . 1 . . . 1 . . . 1 . 1 . . . . . . . . . . . . Assimilate 4 | . . . . . . . . . . . 1 . 1 . . . 1 . . . . 1 . Botnet 10 | . 1 . . . 1 1 . . . . 2 . 1 . . 1 . . 1 . 2 . . Disrupt 1 | . . . . . 1 . . . . . . . . . . . . . . . . . . Fabricators 4 | . . . . . . . . . . . . . . . . . 1 . 2 . 1 . . Prioritize 1 | . . . . . . . . . . . . . . . . . . . 1 . . . . Recompile 3 | . . . . . . . . . . . . . . . . . 1 . 1 . 1 . . Repair Stations . | . . . . . . . . . . . . . . . . . . . . . . . . Recycling Units . | . . . . . . . . . . . . . . . . . . . . . . . . Scanalyzers . | . . . . . . . . . . . . . . . . . . . . . . . . Garrison Access . | . . . . . . . . . . . . . . . . . . . . . . . . Data Cores Recovered 1 | . . . . . . . . . . . . . . . . . . . . . 1 . . Used . | . . . . . . . . . . . . . . . . . . . . . . . . Hacking Detections 83 | . 5 . . . 5 1 1 . 6 . 12 2 8 1 8 1 6 1 6 2 10 7 1 Full Trace Events 7 | . . . . . 1 . . . . . 2 1 . . . . . . . . . 3 . Feedback Events . | . . . . . . . . . . . . . . . . . . . . . . . . Feedback Blocked . | . . . . . . . . . . . . . . . . . . . . . . . . Robot Schematics Acquired . | . . . . . . . . . . . . . . . . . . . . . . . . Robots Built . | . . . . . . . . . . . . . . . . . . . . . . . . Authchips . | . . . . . . . . . . . . . . . . . . . . . . . . Time . | . . . . . . . . . . . . . . . . . . . . . . . . Total Robot Build Rating . | . . . . . . . . . . . . . . . . . . . . . . . . Part Schematics Acquired 3 | . . . . . . . . . . . 1 . . . . . 2 . . . . . . Parts Built 3 | . . . . . . . . . . . 1 . . . . . . . 2 . . . . Authchips 2 | . . . . . . . . . . . . . . . . . . . 2 . . . . Time 170 | . . . . . . . . . . . 95 . . . . . . . 75 . . . . Total Part Build Rating 15 | . . . . . . . . . . . 5 . . . . . . . 10 . . . . Parts Repaired . | . . . . . . . . . . . . . . . . . . . . . . . . Time . | . . . . . . . . . . . . . . . . . . . . . . . . Parts Recycled . | . . . . . . . . . . . . . . . . . . . . . . . . Recycled Matter . | . . . . . . . . . . . . . . . . . . . . . . . . Retrieved Matter . | . . . . . . . . . . . . . . . . . . . . . . . . Retrieved Components . | . . . . . . . . . . . . . . . . . . . . . . . . Parts Scanalyzed 1 | . . . . . . . . . . . . . . . . . . . . . . 1 . Part Schematics Acquired . | . . . . . . . . . . . . . . . . . . . . . . . . Parts Damaged . | . . . . . . . . . . . . . . . . . . . . . . . . Bothacking | -11 -10 -10 -10 -9 -8 -8 -7 -7 -7 -7 -6 -6 -6 -6 -5 -5 -4 -4 -3 -3 -2 -1 -1 ------------ Run | Jun Mat Min Exi Min Mat Gar Fac Gar Fac Gar Fac Gar Fac Gar Fac Gar Fac Gar Res Gar Res Acc Com Used RIF Installer 9 | . . . . . . 1 . 2 . 1 . 1 . 1 . 1 . 1 . 1 . . . Threat Obfuscator 1 | . . . . . . . . . . . . 1 . . . . . . . . . . . Zone Cloak 1 | . . . . . . . . . . 1 . . . . . . . . . . . . . Robot Detection 1 | . . . . . . . . . . . . . . . . 1 . . . . . . . Watcher Feeds 1 | . . . . . . . . 1 . . . . . . . . . . . . . . . Patrol Navigation 1 | . . . . . . . . . . . . . . . . . . 1 . . . . . Program Shield 1 | . . . . . . . . . . . . . . 1 . . . . . . . . . Autooverride 1 | . . . . . . . . 1 . . . . . . . . . . . . . . . Autoassimilate 1 | . . . . . . . . . . . . . . . . . . . . 1 . . . Robots Hacked 116 | . . . . . . . 1 7 8 1 2 6 4 8 3 10 12 10 10 13 5 11 5 Non-combat 22 | . . . . . . . 1 . 2 . . . 3 . 3 . 1 . 7 . . 5 . Combat 94 | . . . . . . . . 7 6 1 2 6 1 8 . 10 11 10 3 13 5 6 5 Autooverrided 14 | . . . . . . . . . . . . 1 . . . 2 1 3 . 3 2 . 2 Autoassimilated 2 | . . . . . . . . . . . . . . . . . . . . . . 1 1 Robot Hacks Applied 110 | . . . . . . . 1 7 9 1 3 6 4 8 5 9 12 7 10 12 4 10 2 generate_anomaly 1 | . . . . . . . . . . . . . . . 1 . . . . . . . . drop_inventory 16 | . . . . . . . . . 2 . . . 3 . 2 . 1 . 5 . . 3 . purge_threat 2 | . . . . . . . 1 . . . . . . . 1 . . . . . . . . block_reporting 1 | . . . . . . . . . . . . . . . 1 . . . . . . . . map_route 4 | . . . . . . . . . . . . . . . . . . . 2 . . 2 . scatter_targeting 1 | . . . . . . . . . . . . . . . . . . . . 1 . . . amplify_resonance 4 | . . . . . . . . . . . . . . . . . . . . 4 . . . wipe_record 14 | . . . . . . . . 1 1 . 1 . 1 1 . 3 2 1 . 1 1 1 . disable_weapons 5 | . . . . . . . . 1 1 . 1 . . . . . . 1 1 . . . . reboot_system 5 | . . . . . . . . . 1 . 1 1 . . . . . . . . 1 1 . go_dormant 4 | . . . . . . . . 2 2 . . . . . . . . . . . . . . overwrite_iff 35 | . . . . . . . . 3 1 . . 4 . 5 . 3 6 4 2 3 1 3 . formatsys_high 18 | . . . . . . . . . 1 1 . 1 . 2 . 3 3 1 . 3 1 . 2 Relay Couplers Released 94 | . . . . . . 13 . 5 . 6 . 18 . 10 . 11 . 10 . 21 . . . Machine Destruction 94 | . . . . . . 13 . 5 . 6 . 18 . 10 . 11 . 10 . 21 . . . Attached 45 | . . . . . . . 4 2 1 3 1 6 . 3 . 9 2 2 . 8 . . 4 Fabnet Peak Effective % . | . . . . . . . . . . . . . . . . . . . . . . . . Robots Rewired 9 | . . . . . . . . . . . . . . . . . 1 3 . 5 . . . Allies Hacked 4 | . . . . . . . . . . . . 2 . . . . . . . . 2 . . Hacks Repelled . | . . . . . . . . . . . . . . . . . . . . . . . . Allies | -11 -10 -10 -10 -9 -8 -8 -7 -7 -7 -7 -6 -6 -6 -6 -5 -5 -4 -4 -3 -3 -2 -1 -1 -------- Run | Jun Mat Min Exi Min Mat Gar Fac Gar Fac Gar Fac Gar Fac Gar Fac Gar Fac Gar Res Gar Res Acc Com Total Allies 90 | . . . . 2 . . . 3 2 1 1 8 1 7 . 7 12 11 2 16 7 5 5 Largest Group 6 | . . . . 2 1 . . 1 1 1 1 2 2 2 . 3 5 4 3 6 3 2 4 Highest-Rated Group 747 | . . . . 45 31 . . 32 16 32 10 190 190 109 . 127 241 212 163 282 138 96 747 Highest-Rated Ally 215 | . . . . 31 31 . . 32 16 32 10 95 95 83 . 49 58 56 56 148 64 69 215 Total Orders 6 | . . . . . . . . . 1 . . . . 1 . . 2 . . . . . 2 STAY 4 | . . . . . . . . . 1 . . . . 1 . . 1 . . . . . 1 FOLLOW 2 | . . . . . . . . . . . . . . . . . 1 . . . . . 1 Ally Attacks 415 | . . . . 2 43 . . 9 12 9 . 18 . 23 . 38 33 31 19 49 17 7 105 Total Damage 15696 | . . . . 43 341 . . 210 186 293 . 383 . 443 . 837 1219 1000 469 1403 509 181 8179 Kills 52 | . . . . . 2 . . 1 1 3 . 7 . 4 . 4 3 5 1 8 2 1 10 Allies Corrupted 8 | . . . . . . . . . . . . . 1 . . 2 . . 1 1 1 1 1 Allies Melted 8 | . . . . . . . . . . . . 1 . . . . 1 . . . . . 6 Intel | -11 -10 -10 -10 -9 -8 -8 -7 -7 -7 -7 -6 -6 -6 -6 -5 -5 -4 -4 -3 -3 -2 -1 -1 ------- Run | Jun Mat Min Exi Min Mat Gar Fac Gar Fac Gar Fac Gar Fac Gar Fac Gar Fac Gar Res Gar Res Acc Com Robot Analysis Total 7 | . 2 . . . 3 . . . . . 1 . . . . . 1 . . . . . . Derelict Logs Recovered 3 | . . 2 . 1 . . . . . . . . . . . . . . . . . . . Drone Launches . | . . . . . . . . . . . . . . . . . . . . . . . . Drone Recoveries . | . . . . . . . . . . . . . . . . . . . . . . . . Exploration | -11 -10 -10 -10 -9 -8 -8 -7 -7 -7 -7 -6 -6 -6 -6 -5 -5 -4 -4 -3 -3 -2 -1 -1 ------------- Run | Jun Mat Min Exi Min Mat Gar Fac Gar Fac Gar Fac Gar Fac Gar Fac Gar Fac Gar Res Gar Res Acc Com Turns Passed 16124 | 62 954 685 338 657 1849 1669 282 225 475 520 609 571 386 576 414 425 631 271 431 1035 873 1061 1125 Spaces Moved 20420 | 36 495 496 308 542 859 865 673 260 1169 614 1758 941 1048 729 1225 368 1448 270 1115 1438 1193 1357 1213 Core 36 | 6 . 15 . . 5 2 . . . . . . . . . . . . . . . . 8 Treads 2363 | 30 495 191 . . 840 807 . . . . . . . . . . . . . . . . . Legs . | . . . . . . . . . . . . . . . . . . . . . . . . Wheels 1154 | . . 290 308 542 14 . . . . . . . . . . . . . . . . . . Hover 4416 | . . . . . . 56 . . . . . . . . . . . . . 605 1193 1357 1205 Flight 12451 | . . . . . . . 673 260 1169 614 1758 941 1048 729 1225 368 1448 270 1115 833 . . . Fastest Speed 21 | 50 160 100 100 115 115 155 29 29 29 29 26 26 27 27 27 27 23 23 21 21 48 40 38 Average Speed 51 | 141 160 124 108 115 157 161 29 29 29 29 26 26 27 27 27 27 25 23 23 37 48 46 47 Slowest Speed 550 | 160 160 160 115 115 450 550 29 29 165 97 26 98 27 27 27 97 100 23 104 138 148 138 131 Overloaded Moves 2 | . . . . . . . . . . . . . . . . . . . . . . . 2 Propulsion Burnouts . | . . . . . . . . . . . . . . . . . . . . . . . . Robots Hopped 79 | . . . . . . . 2 1 14 . 26 . 11 . 1 1 14 1 8 . . . . Cave-ins Triggered 1 | . . . . . . . . . . . 1 . . . . . . . . . . . . Exploration Rate (%) 52 | 3 70 96 70 89 78 80 18 38 36 60 46 93 32 88 33 40 40 33 35 77 41 40 30 Regions Visited 23 Branch Regions 4 Pre-discovered Areas 1 | . . . 1 . . . . . . . . . . . . . . . . . . . . Known Exits Taken 8 | . . . . . 1 . 1 . 1 . 1 . 1 . 1 . 1 . 1 . . . . Unknown Exits Taken 7 | 1 1 1 1 1 . . . . . . . . . . . . . . . . 1 1 . Scrap Searched 3 | . . 1 . 2 . . . . . . . . . . . . . . . . . . . Spaces Dug 386 | . . . . . 5 9 13 5 7 51 21 34 4 69 8 7 21 5 16 52 27 28 4 Terrain Destroyed 639 | . . . . 25 19 52 13 5 7 70 21 83 4 82 8 7 21 5 16 57 48 62 34 Melee 224 | . . . . . 5 9 13 5 7 8 19 14 4 15 8 7 21 5 16 15 25 25 3 Projectile 23 | . . . . . 4 1 . . . . 2 . . . . . . . . 2 3 6 5 AOE 392 | . . . . 25 10 42 . . . 62 . 69 . 67 . . . . . 40 20 31 26 Terrain Rammed . | . . . . . . . . . . . . . . . . . . . . . . . . Walls Destroyed . | . . . . . . . . . . . . . . . . . . . . . . . . Machines Disabled . | . . . . . . . . . . . . . . . . . . . . . . . . Actions | -11 -10 -10 -10 -9 -8 -8 -7 -7 -7 -7 -6 -6 -6 -6 -5 -5 -4 -4 -3 -3 -2 -1 -1 --------- Run | Jun Mat Min Exi Min Mat Gar Fac Gar Fac Gar Fac Gar Fac Gar Fac Gar Fac Gar Res Gar Res Acc Com Total 24569 | 44 585 536 312 565 1203 1016 732 380 1251 912 1822 1174 1130 1024 1287 637 1634 449 1250 1846 1431 1711 1638 Wait 2298 | . 43 21 . 10 187 55 1 49 7 160 34 132 59 211 37 206 97 142 89 233 164 206 155 Move 20252 | 35 494 495 307 541 859 864 669 257 1142 613 1709 940 1027 728 1222 365 1421 267 1100 1437 1192 1356 1212 Hop 71 | . . . . . . . 2 1 13 . 23 . 10 . 1 1 12 1 7 . . . . Pick Up 99 | 2 1 3 2 1 19 5 4 3 2 4 4 1 1 5 . 2 5 . 2 13 2 5 13 Fast Attach 142 | 6 3 1 . 1 14 1 2 . 4 . 4 6 8 1 5 6 15 2 8 11 8 9 27 Attach 46 | . . 1 1 . 1 4 7 . . 4 3 . . 2 . 1 2 . 1 8 . 2 9 Detach 47 | . 2 . 1 . 1 . 3 . 1 2 . 1 . . 1 5 1 1 1 11 3 2 11 Swap 230 | 1 1 . . 4 10 12 4 13 11 10 6 36 3 17 1 6 6 2 5 30 8 27 17 Drop 173 | . 1 . 1 2 20 6 6 2 5 . 2 6 12 4 4 2 20 . 9 14 6 17 34 Fire 617 | . 40 15 . 6 85 53 1 9 15 16 7 22 4 20 7 21 21 20 11 60 12 46 126 Melee 410 | . . . . . 5 16 15 10 15 13 30 28 6 36 9 22 34 14 17 29 36 41 34 Ram . | . . . . . . . . . . . . . . . . . . . . . . . . Kick . | . . . . . . . . . . . . . . . . . . . . . . . . Crush 2 | . . . . . 2 . . . . . . . . . . . . . . . . . . Escape Stasis 182 | . . . . . . . 18 36 36 90 . 2 . . . . . . . . . . . Rewire . | . . . . . . . . . . . . . . . . . . . . . . . . Trap . | . . . . . . . . . . . . . . . . . . . . . . . . Miscellaneous . | . . . . . . . . . . . . . . . . . . . . . . . . Route ------- -11/Junkyard -10/Materials (discovered 4 exits: [*Mat x3] / [*Min]) -10/Mines (discovered 3 exits: [*Mat x2] / *Exi) -10/Exiles (discovered 2 exits: [*Min x2]) -9/Mines (discovered 2 exits: *Mat x2) -8/Materials (discovered 6 exits: *Fac x3 / *Sto x2 / Gar) -8/Garrison (discovered 3 exits: *Fac x3) -7/Factory -7/Garrison -7/Factory (discovered 2 exits: [*Low] / Gar) -7/Garrison (discovered 3 exits: *Fac x3) -6/Factory (discovered 5 exits: *Fac x2 / [*Low] / [*Ext] / Gar) -6/Garrison (discovered 3 exits: *Fac x3) -6/Factory (discovered 4 exits: *Fac / [*Low] / [*Ext] / Gar) -6/Garrison (discovered 3 exits: *Fac x3) -5/Factory (discovered 5 exits: *Fac x2 / [*Upp x2] / Gar) -5/Garrison (discovered 3 exits: *Fac x3) -4/Factory (discovered 5 exits: *Res x2 / [*Upp x2] / Gar) -4/Garrison (discovered 3 exits: *Res x3) -3/Research (discovered 2 exits: *Res / Gar) -3/Garrison (discovered 3 exits: *Res x3) -2/Research (discovered 3 exits: *Acc / Tes x2) -1/Access -1/Command (discovered 2 exits: *Sur x2) To Epsilon Eridani History --------- Turn | Location | Event 9 | -11/Junkyard | Discovered new exit (range 15) 63 | -11/Junkyard | Entered Materials 315 | -10/Materials | Build established: Mutant 318 | -10/Materials | Discovered new exit (range 12) 407 | -10/Materials | Discovered new exit (range 16) 533 | -10/Materials | Discovered new exit (range 3) 992 | -10/Materials | Discovered new exit (range 16) 1017 | -10/Materials | Entered Mines 1048 | -10/Mines | Found a hidden stash of uninstalled traps 1163 | -10/Mines | Learned 2 Materials zone layouts 1270 | -10/Mines | Assembled infested the area 1329 | -10/Mines | Core integrity fell below 50% 1363 | -10/Mines | Lost 5 parts (1p2n1u1w) 1503 | -10/Mines | Discovered new exit (range 10) 1518 | -10/Mines | Learned 2 Materials zone layouts 1676 | -10/Mines | Discovered new exit (range 7) 1697 | -10/Mines | Deemed a non-threat by the Exiles lab entrance 1698 | -10/Mines | Discovered new exit (range 5) 1702 | -10/Mines | Entered Exiles 1717 | -10/Exiles | Discovered new exit (range 15) 1729 | -10/Exiles | Met 8R-AWN 1743 | -10/Exiles | Met EX-HEX 1780 | -10/Exiles | Met EX-DEC 1797 | -10/Exiles | Learned location of Zion (-6) 1875 | -10/Exiles | Met EX-BIN 1887 | -10/Exiles | Aligned with FarCom system 1889 | -10/Exiles | Given EX-Vault access code 1917 | -10/Exiles | Opened EX-Vault 1925 | -10/Exiles | Found Gui. Plasma Cannon 1950 | -10/Exiles | Warned to stay clear of 0b10 Research branches 2028 | -10/Exiles | Discovered new exit (range 14) 2040 | -10/Exiles | Left Exiles lab with Gui. Plasma Cannon 2040 | -10/Exiles | Entered Mines 2145 | -9/Mines | Discovered new exit (range 15) 2210 | -9/Mines | Received a Rocket Launcher from a helpful Derelict 2230 | -9/Mines | Learned Materials terminal intel 2512 | -9/Mines | Discovered new exit (range 9) 2697 | -9/Mines | Entered Materials 2697 | -8/Materials | Accompanied by 1 ally 2697 | -8/Materials | Evolved 4 slots: Propulsion x1, Utility x3 2698 | -8/Materials | Identified exit to Factory 2698 | -8/Materials | Identified exit to Storage 2699 | -8/Materials | Loaded intel: 11 terminal locations 2702 | -8/Materials | Led the pair of lost Derelicts to an unsafe place 2902 | -8/Materials | Discovered exit to Storage (range 9) 3151 | -8/Materials | Build established: Scavenger-Mutant 3806 | -8/Materials | Discovered exit to Factory (range 14) 4499 | -8/Materials | Discovered exit to Factory (range 4) 4546 | -8/Materials | Identified exit to Garrison 4546 | -8/Materials | Entered Garrison 4564 | -8/Garrison | Triggered checkpoint 4588 | -8/Garrison | Garrison Relay disabled 4898 | -8/Garrison | Triggered checkpoint 4966 | -8/Garrison | Discovered exit to Factory (range 10) 5136 | -8/Garrison | Triggered checkpoint 5155 | -8/Garrison | Garrison Relay disabled 5221 | -8/Garrison | Triggered checkpoint 5315 | -8/Garrison | Triggered checkpoint 5398 | -8/Garrison | Discovered exit to Factory (range 10) 5609 | -8/Garrison | Discovered exit to Factory (range 13) 5620 | -8/Garrison | Discovered exit to Factory (range 57) 5620 | -8/Garrison | Discovered exit to Factory (range 13) 5620 | -8/Garrison | Discovered exit to Factory (range 68) 5822 | -8/Garrison | Installed Relay Interface Framework 5859 | -8/Garrison | Garrison Relay disabled 6023 | -8/Garrison | Core integrity fell below 50% 6071 | -8/Garrison | Lost 7 parts (4n2u1w) 6166 | -8/Garrison | Build established: Bothacker-Mutant 6215 | -8/Garrison | Entered Factory 6215 | -7/Factory | Evolved 2 slots: Utility x2 6497 | -7/Factory | Identified exit to Garrison 6497 | -7/Factory | Entered Garrison 6507 | -7/Garrison | Build established: Bothacker-Sprinter 6511 | -7/Garrison | Expanded RIF knowledge: Watcher Feeds 6526 | -7/Garrison | Triggered checkpoint 6529 | -7/Garrison | Expanded RIF knowledge: Autooverride 6570 | -7/Garrison | Triggered checkpoint 6602 | -7/Garrison | Triggered checkpoint 6646 | -7/Garrison | Garrison Relay disabled 6718 | -7/Garrison | Discovered new exit (range 9) 6722 | -7/Garrison | Entered Factory 6945 | -7/Factory | Discovered new exit (range 12) 7197 | -7/Factory | Identified exit to Garrison 7197 | -7/Factory | Entered Garrison 7215 | -7/Garrison | Expanded RIF knowledge: Zone Cloak 7310 | -7/Garrison | Triggered checkpoint 7411 | -7/Garrison | Triggered checkpoint 7441 | -7/Garrison | Discovered new exit (range 13) 7460 | -7/Garrison | Triggered checkpoint 7518 | -7/Garrison | Discovered new exit (range 15) 7560 | -7/Garrison | Garrison Relay disabled 7566 | -7/Garrison | Destroyed 9 combat bots 7568 | -7/Garrison | Triggered checkpoint 7632 | -7/Garrison | Garrison Relay disabled 7706 | -7/Garrison | Discovered new exit (range 15) 7717 | -7/Garrison | Entered Factory 7717 | -6/Factory | Evolved 2 slots: Propulsion x1, Utility x1 7777 | -6/Factory | Discovered new exit (range 5) 7912 | -6/Factory | Discovered new exit (range 9) 7940 | -6/Factory | Build established: Botlord-Sprinter 8059 | -6/Factory | Crushed by falling debris 8059 | -6/Factory | System corruption reached 10% 8090 | -6/Factory | Lost 3 parts (1p2u) 8189 | -6/Factory | Discovered new exit (range 16) 8207 | -6/Factory | Discovered new exit (range 16) 8307 | -6/Factory | Fabricated Stasis Canceller? 8326 | -6/Factory | Identified exit to Garrison 8326 | -6/Factory | Entered Garrison 8348 | -6/Garrison | Triggered checkpoint 8350 | -6/Garrison | Expanded RIF knowledge: Threat Obfuscation 8393 | -6/Garrison | Garrison Relay disabled 8468 | -6/Garrison | Triggered checkpoint 8491 | -6/Garrison | Triggered checkpoint 8573 | -6/Garrison | Discovered new exit (range 9) 8589 | -6/Garrison | Spotted Executioner 8589 | -6/Garrison | Spotted Executioner 8598 | -6/Garrison | Triggered checkpoint 8601 | -6/Garrison | Garrison Relay disabled 8626 | -6/Garrison | Rescued a captive Derelict 8670 | -6/Garrison | Found Enh. Force Lance 8688 | -6/Garrison | Discovered new exit (range 13) 8716 | -6/Garrison | Garrison Relay disabled 8762 | -6/Garrison | Triggered checkpoint 8772 | -6/Garrison | Found embedded Infiltrators 8779 | -6/Garrison | Discovered new exit (range 8) 8792 | -6/Garrison | Triggered checkpoint 8870 | -6/Garrison | Garrison Relay disabled 8897 | -6/Garrison | Entered Factory 8897 | -6/Factory | Accompanied by 2 allies 9041 | -6/Factory | Discovered new exit (range 16) 9142 | -6/Factory | Discovered new exit (range 10) 9223 | -6/Factory | Discovered new exit (range 16) 9262 | -6/Factory | Identified exit to Garrison 9283 | -6/Factory | Entered Garrison 9283 | -6/Garrison | Accompanied by 2 allies 9334 | -6/Garrison | Triggered checkpoint 9445 | -6/Garrison | Discovered new exit (range 10) 9447 | -6/Garrison | Learned Factory security intel 9511 | -6/Garrison | Triggered checkpoint 9535 | -6/Garrison | Garrison Relay disabled 9654 | -6/Garrison | Triggered checkpoint 9668 | -6/Garrison | Spotted B-75 Beast 9693 | -6/Garrison | Discovered new exit (range 3) 9704 | -6/Garrison | Expanded RIF knowledge: Program Shield 9721 | -6/Garrison | Triggered checkpoint 9759 | -6/Garrison | Garrison Relay disabled 9786 | -6/Garrison | Triggered checkpoint 9828 | -6/Garrison | Discovered new exit (range 14) 9859 | -6/Garrison | Entered Factory 9859 | -5/Factory | Evolved 2 slots: Utility x2 10078 | -5/Factory | Discovered new exit (range 16) 10130 | -5/Factory | Discovered new exit (range 14) 10163 | -5/Factory | Discovered new exit (range 34) 10213 | -5/Factory | Identified exit to Garrison 10266 | -5/Factory | Discovered new exit (range 28) 10273 | -5/Factory | Entered Garrison 10285 | -5/Garrison | Triggered checkpoint 10300 | -5/Garrison | Garrison Relay disabled 10310 | -5/Garrison | Expanded RIF knowledge: Robot Detection 10436 | -5/Garrison | Spotted B-75 Beast 10491 | -5/Garrison | Discovered new exit (range 36) 10491 | -5/Garrison | Discovered new exit (range 38) 10491 | -5/Garrison | Discovered new exit (range 52) 10493 | -5/Garrison | Triggered checkpoint 10506 | -5/Garrison | Triggered checkpoint 10508 | -5/Garrison | Garrison Relay disabled 10516 | -5/Garrison | Garrison Relay disabled 10698 | -5/Garrison | Entered Factory 10698 | -4/Factory | Evolved 2 slots: Utility x2 10730 | -4/Factory | Found Quantum Capacitor 10912 | -4/Factory | Spotted B-86 Titan 10970 | -4/Factory | Discovered new exit (range 15) 11068 | -4/Factory | Discovered new exit (range 17) 11130 | -4/Factory | Discovered new exit (range 16) 11308 | -4/Factory | Discovered new exit (range 19) 11326 | -4/Factory | Identified exit to Garrison 11329 | -4/Factory | Entered Garrison 11332 | -4/Garrison | Discovered new exit (range 61) 11332 | -4/Garrison | Discovered new exit (range 45) 11332 | -4/Garrison | Discovered new exit (range 56) 11335 | -4/Garrison | Triggered checkpoint 11340 | -4/Garrison | Garrison Relay disabled 11387 | -4/Garrison | Triggered checkpoint 11469 | -4/Garrison | Triggered checkpoint 11542 | -4/Garrison | Garrison Relay disabled 11563 | -4/Garrison | Expanded RIF knowledge: Patrol Navigation 11600 | -4/Garrison | Entered Research 11600 | -3/Research | Accompanied by 3 allies 11600 | -3/Research | Evolved 2 slots: Utility x2 11603 | -3/Research | Found Prototype Device 11603 | -3/Research | Identified Exp. EM Disruption Field 11726 | -3/Research | Discovered new exit (range 7) 11740 | -3/Research | Fabricated Biomechanical Wings (x1) 11768 | -3/Research | Fabricated Biomechanical Wings (x1) 12031 | -3/Research | Identified exit to Garrison 12031 | -3/Research | Entered Garrison 12034 | -3/Garrison | Triggered checkpoint 12046 | -3/Garrison | Triggered checkpoint 12058 | -3/Garrison | Garrison Relay disabled 12154 | -3/Garrison | Rescued a captive Derelict 12158 | -3/Garrison | Rescued a captive Derelict 12261 | -3/Garrison | Triggered checkpoint 12292 | -3/Garrison | Triggered checkpoint 12491 | -3/Garrison | Discovered new exit (range 9) 12496 | -3/Garrison | Rewired B-86 Titan 12505 | -3/Garrison | Rewired B-90 Cyclops 12550 | -3/Garrison | Discovered new exit (range 13) 12550 | -3/Garrison | Discovered new exit (range 76) 12550 | -3/Garrison | Discovered new exit (range 63) 12552 | -3/Garrison | Garrison Relay disabled 12649 | -3/Garrison | Garrison Relay disabled 12658 | -3/Garrison | Expanded RIF knowledge: Autoassimilate 12798 | -3/Garrison | Build established: Botlord-Mutant 12944 | -3/Garrison | Found Relay Coupler [Proto] 12945 | -3/Garrison | Found Relay Coupler [Proto] 12950 | -3/Garrison | Found Relay Coupler [Proto] 12952 | -3/Garrison | Found Relay Coupler [Proto] 13004 | -3/Garrison | Garrison Relay disabled 13022 | -3/Garrison | Triggered checkpoint 13042 | -3/Garrison | Garrison Relay disabled 13066 | -3/Garrison | Entered Research 13066 | -2/Research | Evolved 2 slots: Utility x2 13092 | -2/Research | Found Antimissile System 13108 | -2/Research | Identified exit to Testing 13544 | -2/Research | Allied Derelicts emerged from ambush trap array 13724 | -2/Research | Spotted B-90 Cyclops 13872 | -2/Research | Discovered new exit (range 22) 13939 | -2/Research | Entered Access 13939 | -1/Access | Evolved 2 slots: Power x1, Propulsion x1 13972 | -1/Access | Found Quantum Capacitor 14440 | -1/Access | Found Powered Armor 14465 | -1/Access | Spotted B-99 Colossus 14997 | -1/Access | Discovered new exit (range 8) 15000 | -1/Access | Entered Command 15017 | -1/Command | Found Antimissile System 15152 | -1/Command | Spotted M Guard 15152 | -1/Command | Spotted M Guard 15153 | -1/Command | Spotted Combat Programmer 15153 | -1/Command | Spotted Combat Programmer 15154 | -1/Command | Autoassimilated Combat Programmer with RIF 15156 | -1/Command | Assimilated M Guard with formatsys_high 15157 | -1/Command | Assimilated M Guard with formatsys_high 15174 | -1/Command | Allies destroyed Combat Programmer 15250 | -1/Command | First assault squad dispatched 15366 | -1/Command | Met MAIN.C 15476 | -1/Command | Allies destroyed MAIN.C Shell 15476 | -1/Command | Surrendered to MAIN.C 15476 | -1/Command | Loaded intel: 55 machine locations 15476 | -1/Command | Loaded intel: 110 trap records 15476 | -1/Command | Identified exit to Surface 15476 | -1/Command | Discovered exit to Surface (range 81) 15476 | -1/Command | Discovered exit to Surface (range 76) 15497 | -1/Command | Build established: Hacker-Mutant 15579 | -1/Command | MAIN.C activated Command garrisons 15579 | -1/Command | Found Prototype Ballistic Cannon 15618 | -1/Command | Unknown forces attacked Command 15618 | -1/Command | Spotted EQ-001 15618 | -1/Command | Spotted EQ-006 15618 | -1/Command | Spotted EQ-000 15618 | -1/Command | Spotted EQ-005 15618 | -1/Command | Spotted EQ-014 15618 | -1/Command | Spotted EQ-004 15618 | -1/Command | Spotted EQ-003 15618 | -1/Command | Spotted EQ-002 15632 | -1/Command | Identified Omega Cannon 15632 | -1/Command | Phase Generator disabled 15641 | -1/Command | Destroyed EQ-006 15654 | -1/Command | Found Prototype Processor 15654 | -1/Command | Identified Exp. Core Analyzer 15671 | -1/Command | Spotted EQ-013 15680 | -1/Command | Destroyed EQ-013 15693 | -1/Command | Found Prototype Processor 15693 | -1/Command | Identified Exp. Armor Integrity Analyzer 15706 | -1/Command | Found Exp. Core Analyzer 15709 | -1/Command | Found Exp. Core Analyzer 15715 | -1/Command | Spotted EQ-018 15715 | -1/Command | Spotted EQ-021 15715 | -1/Command | Spotted EQ-020 15715 | -1/Command | Spotted EQ-022 15715 | -1/Command | Spotted EQ-019 15715 | -1/Command | Spotted EQ-032 15731 | -1/Command | Found Prototype Processor 15731 | -1/Command | Identified Exp. Targeting Computer 15763 | -1/Command | Spotted EQ-027 15768 | -1/Command | Destroyed EQ-027 15769 | -1/Command | Spotted EQ-037 15776 | -1/Command | Destroyed EQ-037 15777 | -1/Command | Spotted EQ-028 15802 | -1/Command | Destroyed EQ-028 15810 | -1/Command | Spotted EQ-030 15811 | -1/Command | Destroyed EQ-030 15814 | -1/Command | Spotted EQ-035 15832 | -1/Command | Spotted EQ-055 15832 | -1/Command | Spotted EQ-038 15834 | -1/Command | Allies destroyed EQ-038 15838 | -1/Command | Destroyed EQ-035 15841 | -1/Command | Destroyed EQ-055 15891 | -1/Command | Found Prototype Device 15891 | -1/Command | Identified Adv. Particle Accelerator 15893 | -1/Command | Found Prototype Device 15893 | -1/Command | Identified Exp. System Purifier 15896 | -1/Command | Found Prototype Device 15896 | -1/Command | Identified Beam Splitter 15902 | -1/Command | Found Prototype Reactor 15902 | -1/Command | Identified Zero-point Reactor 15925 | -1/Command | Build established: Scavenger-Mutant 16011 | -1/Command | Spotted EQ-057 16013 | -1/Command | Spotted EQ-063 16014 | -1/Command | Destroyed EQ-057 16018 | -1/Command | Spotted EQ-067 16024 | -1/Command | Destroyed EQ-063 16034 | -1/Command | Spotted EQ-080 16053 | -1/Command | Spotted EQ-100 16058 | -1/Command | Destroyed EQ-100 16060 | -1/Command | Spotted EQ-106 16063 | -1/Command | Spotted EQ-069 16064 | -1/Command | Destroyed EQ-067 16077 | -1/Command | Spotted EQ-104 16080 | -1/Command | Spotted EQ-092 16084 | -1/Command | Spotted EQ-062 16085 | -1/Command | All MAIN.C guards destroyed 16090 | -1/Command | Spotted EQ-103 16095 | -1/Command | Destroyed EQ-092 16106 | -1/Command | Spotted EQ-084 16106 | -1/Command | Spotted EQ-086 16113 | -1/Command | Spotted EQ-101 16117 | -1/Command | Core integrity fell below 50% 16123 | -1/Command | Core integrity fell below 20% 16125 | *** | Escaped! Last Messages --------------- 16109_ Omega Cannon destroyed. 16109_ Dropped Centrium Medium Armor Plating. 16110_ Exp. Core Analyzer destroyed. 16110_ Critical hit (Blast). 16110_ Exp. Cooling System destroyed. 16110_ Slug penetrates EQ-103. 16111_ System corrupted: Component data lost. 16112_ H-88 Terminator destroyed. 16113_ Cld. Antigrav System destroyed. 16116_ The unstable cave ceiling collapses. 16117_ Acquired 20 matter. 16118_ The unstable cave ceiling collapses. 16118_ Penetrated by Slug. 16119_ The unstable cave ceiling collapses. 16119_ Knocked back. 16121_ Cmb. Linear Gravjet destroyed. 16121_ Dropped Exp. Energy Well. 16122_ The unstable cave ceiling collapses. 16122_ Penetrated by Slug. 16123_ The unstable cave ceiling collapses. Map ----- +----------------------------------------------------+ | ## ##### T#??? | | ## #???# ####### ##??? | | ## ##### ^ ^ #??#### ##??? | | ######+### ^ #??#][[ =#??? | | #??#[]] =#??? | | [ #??#! !* =#??? | | ""T"""" % ### #??#! !!*==#??? | | """""""" % %= "#?# #??#########??? | | ##########+### * "" ""#?# #?????????????? | | ## ] !# """" T"#?# #?????????????? | | ## # """" ""#?# #?????????????? | | ## # """" ""#?# #?????????????? | | ## ! # #?# #?????????????? | | ## # *#?# #?????????????? | | ##! # % %#?# #?????????????? | | ## # %! #?# #?????????????? | | ## # #####+##### #?# ##?????????????? | | ! ################## # #?# #??????????????? | | #????????????????# ! # #?# #??????????????? | | #????????????????# !!# #?# #??????????????? | | #????????????????# !["%#?# #??????????????? | | #????????????????# "%#?# #??????????????? | | +##????????????????##########%#?# #??????????????? | | #???????????????????#######"%"?# #??????????????? | | #???????############# # #" #?# #??????????????? | | #???????# |!! ## # # @ #" ###%####???????????? | | #???????# |! # ## #% #???????????? | | #?????# # |! # % # ## #???????????? | | +####### * # ###### # [ #??########## | | #??# ; % #??#????????? | | #??# + # # #??#?######## | | ""% #### ## ! #??#?#" "" | | """ # % * #??#?#"" | | R"! # % ! ! #??#?#"""" | | """! # = % #??#?#"""" % | | "" w [ % ##?#?#" " | | # ] =] # ###?#" | | % " %= ##?# | | #+##### [* = # # ###?# % | | # %*=! % ##?# % % | | # =!]!= ] # #?# " % | | # = !! # ##?# | | / #""#"####" ##?# %%%% * | | # ######### #?# %== | | # # # % # #?#%%]= % | | # # "! #### !! | | # # # == % !%% | | ####### # # == % | !!% =*=% | | ??????# # # [ * !% !=!% | | ??????!== + # * %] #### ! | +----------------------------------------------------+ Best States ------------- Heat Dissipation 116 Energy Generation 53 Energy Capacity 930 Matter Stores 800 Matter Capacity 800 Sight Range 22 Terrain Scan Density 10 Jamming Range 16 Armor Coverage 825 Resistance: TH 15 Point Defense Rating 240 Weapon Cycling 25 Evasion (%) 65 Targeting Accuracy 20 Target Analysis 8 Core Analysis 12 Armor Integrity Analysis 50 Recoil Reduction 3 Matter Filtering 50 Particle Charging 50 Offensive Hacking 30 Defensive Hacking 12 Relay Coupler Types 5 Relay Coupler Value 239 Authchip Count 2 Item Schematics ----------------- Stasis Canceller | -6/Factory | Hacked Biomechanical Wings | -4/Factory | Hacked Adv. Reaction Control System | -4/Factory | Hacked Robot Schematics ------------------ None Fabricated ------------ Stasis Canceller | x1 | -6/Factory Biomechanical Wings | x1 | -3/Research | Authchip Biomechanical Wings | x1 | -3/Research | Authchip Alien Tech Used ----------------- None Achievements -------------- None Challenges ------------ None Game ------ Seed BladeSystemModule Manual? 0 Play Time 05:09:23 Cumulative 301.5 hours Start 2023.02.22 @ 18:36:40 End 2023.02.23 @ 22:41:27 Sessions 3 Manual Loads 0 Difficulty Rogue Special Mode None Game No. 409 Rogue 322 Adventurer 87 Explorer 0 Win Type 0 Total 11 Types 6/0/3/1/1/0/0/0/0 Lore% 80 Gallery% 83 Achievement% 71 Wizard Run 0 Options --------- ASCII 0 Keyboard 1 Movement Numpad Keybinds 0 Fullscreen 1 Font 18/SmallcapsGlow Map View 76x50 Tactical HUD 1 Map Filters NONE Filters NONE Steam 1 RUN: 2ca37032-0855-4e3c-8ff0-7a0d963a0f99